[Event "Titled Tuesday Blitz March 07 Late 2023"]
[White "reevecanada"]
[Black "Rian, Kapriaga"]
[BlackFideId "7103263"]
[WhiteElo "2515"]
[BlackElo "2362"]
[Result "1-0"]
[Round "11"]
[TimeControl "180+2"]
[Date "2023.03.07"]
[WhiteClock "0:01:32"]
[BlackClock "0:00:11"]

1. e4 {[%clk 0:03:00]}  c6 {[%clk 0:02:51]} 2. c4 {[%clk 0:03:00]}  d5 {[%clk 0:02:50]} 3. cxd5 {[%clk 0:03:00]}  cxd5 {[%clk 0:02:49]} 4. exd5 {[%clk 0:03:01]}  Nf6 {[%clk 0:02:47]} 5. Nc3 {[%clk 0:03:02]}  Nxd5 {[%clk 0:02:47]} 6. Nf3 {[%clk 0:03:02]}  Nc6 {[%clk 0:02:44]} 7. Bb5 {[%clk 0:03:01]}  e6 {[%clk 0:02:38]} 8. Qa4 {[%clk 0:02:56]}  Bd7 {[%clk 0:02:30]} 9. Nxd5 {[%clk 0:02:53]}  exd5 {[%clk 0:02:25]} 10. O-O {[%clk 0:02:53]}  Be7 {[%clk 0:02:24]} 11. d4 {[%clk 0:02:50]}  O-O {[%clk 0:02:23]} 12. Bf4 {[%clk 0:02:49]}  Bf6 {[%clk 0:02:22]} 13. Ne5 {[%clk 0:02:48]}  Nxe5 {[%clk 0:01:30]} 14. dxe5 {[%clk 0:02:46]}  Bxb5 {[%clk 0:01:24]} 15. Qxb5 {[%clk 0:02:45]}  Bg5 {[%clk 0:01:23]} 16. Bxg5 {[%clk 0:02:44]}  Qxg5 {[%clk 0:01:22]} 17. Qxd5 {[%clk 0:02:44]}  Rfd8 {[%clk 0:01:18]} 18. Qxb7 {[%clk 0:02:43]}  Qxe5 {[%clk 0:01:17]} 19. Rad1 {[%clk 0:02:40]}  Rdb8 {[%clk 0:01:14]} 20. Qf3 {[%clk 0:02:35]}  Qxb2 {[%clk 0:01:12]} 21. Rd7 {[%clk 0:02:34]}  Qxa2 {[%clk 0:01:11]} 22. Rfd1 {[%clk 0:02:34]}  h6 {[%clk 0:01:08]} 23. h3 {[%clk 0:02:31]}  a5 {[%clk 0:01:07]} 24. Rc7 {[%clk 0:02:28]}  a4 {[%clk 0:01:02]} 25. Rdd7 {[%clk 0:02:27]}  Rf8 {[%clk 0:01:02]} 26. Rxf7 {[%clk 0:02:25]}  Rxf7 {[%clk 0:00:59]} 27. Qxa8+ {[%clk 0:02:23]}  Rf8 {[%clk 0:00:56]} 28. Qa7 {[%clk 0:02:21]}  Qa1+ {[%clk 0:00:51]} 29. Kh2 {[%clk 0:02:20]}  a3 {[%clk 0:00:50]} 30. Qa5 {[%clk 0:02:06]}  Qb2 {[%clk 0:00:21]} 31. Qd5+ {[%clk 0:01:51]}  Kh8 {[%clk 0:00:19]} 32. Qd6 {[%clk 0:01:39]}  Rxf2 {[%clk 0:00:15]} 33. Rc8+ {[%clk 0:01:36]}  Kh7 {[%clk 0:00:15]} 34. Qd3+ {[%clk 0:01:36]}  g6 {[%clk 0:00:13]} 35. Rc7+ {[%clk 0:01:36]}  Kg8 {[%clk 0:00:11]} 36. Qd5+ {[%clk 0:01:32]} 1-0


[Site "https://www.chess.com"]

[Event "Titled Tuesday Blitz March 07 Late 2023"]
[White "Melikhov, Evgeny V."]
[Black "Dudzinski, Pawel"]
[WhiteFideId "4122046"]
[BlackFideId "1117890"]
[WhiteElo "2158"]
[BlackElo "2099"]
[Result "1-0"]
[Round "11"]
[TimeControl "180+2"]
[Date "2023.03.07"]
[WhiteClock "0:01:13"]
[BlackClock "0:00:04"]

1. d4 {[%clk 0:03:00]}  d5 {[%clk 0:02:59]} 2. c4 {[%clk 0:03:00]}  c6 {[%clk 0:03:00]} 3. Nc3 {[%clk 0:03:00]}  e6 {[%clk 0:03:00]} 4. e3 {[%clk 0:03:01]}  f5 {[%clk 0:03:00]} 5. g4 {[%clk 0:02:59]}  Nf6 {[%clk 0:02:57]} 6. gxf5 {[%clk 0:02:59]}  exf5 {[%clk 0:02:58]} 7. Qb3 {[%clk 0:02:59]}  Be7 {[%clk 0:02:53]} 8. cxd5 {[%clk 0:02:57]}  Nxd5 {[%clk 0:02:52]} 9. Nxd5 {[%clk 0:02:57]}  Qxd5 {[%clk 0:02:48]} 10. Qxd5 {[%clk 0:02:57]}  cxd5 {[%clk 0:02:49]} 11. Bg2 {[%clk 0:02:57]}  Be6 {[%clk 0:02:49]} 12. Ne2 {[%clk 0:02:57]}  Bd6 {[%clk 0:02:48]} 13. Nc3 {[%clk 0:02:53]}  Bb4 {[%clk 0:02:48]} 14. Bd2 {[%clk 0:02:54]}  Bxc3 {[%clk 0:02:48]} 15. Bxc3 {[%clk 0:02:54]}  Nc6 {[%clk 0:02:47]} 16. Ke2 {[%clk 0:02:47]}  Kd7 {[%clk 0:02:47]} 17. Rhc1 {[%clk 0:02:39]}  f4 {[%clk 0:02:41]} 18. e4 {[%clk 0:02:33]}  dxe4 {[%clk 0:02:38]} 19. Bxe4 {[%clk 0:02:32]}  Ne7 {[%clk 0:02:38]} 20. d5 {[%clk 0:02:23]}  Bxd5 {[%clk 0:02:33]} 21. Rd1 {[%clk 0:02:20]}  Ke6 {[%clk 0:02:26]} 22. Bxd5+ {[%clk 0:02:15]}  Nxd5 {[%clk 0:02:27]} 23. Bxg7 {[%clk 0:02:15]}  Rhg8 {[%clk 0:02:22]} 24. Bd4 {[%clk 0:02:13]}  Rg2 {[%clk 0:02:12]} 25. Kf3 {[%clk 0:02:12]}  Rxh2 {[%clk 0:02:07]} 26. Rh1 {[%clk 0:02:06]}  Rxh1 {[%clk 0:02:00]} 27. Rxh1 {[%clk 0:02:05]}  Ne7 {[%clk 0:00:58]} 28. Rxh7 {[%clk 0:02:00]}  Rd8 {[%clk 0:00:46]} 29. Bxa7 {[%clk 0:01:51]}  Rd3+ {[%clk 0:00:19]} 30. Kxf4 {[%clk 0:01:46]}  Nd5+ {[%clk 0:00:18]} 31. Ke4 {[%clk 0:01:43]}  Rd2 {[%clk 0:00:19]} 32. Rxb7 {[%clk 0:01:35]}  Kd6 {[%clk 0:00:16]} 33. Rb3 {[%clk 0:01:29]}  Re2+ {[%clk 0:00:15]} 34. Kf3 {[%clk 0:01:27]}  Rd2 {[%clk 0:00:15]} 35. Be3 {[%clk 0:01:24]}  Rd1 {[%clk 0:00:15]} 36. a4 {[%clk 0:01:22]}  Ra1 {[%clk 0:00:15]} 37. Ra3 {[%clk 0:01:20]}  Rb1 {[%clk 0:00:11]} 38. a5 {[%clk 0:01:16]}  Rxb2 {[%clk 0:00:06]} 39. a6 {[%clk 0:01:17]}  Nc7 {[%clk 0:00:07]} 40. Bf4+ {[%clk 0:01:13]}  Kc6 {[%clk 0:00:04]} 41. Bxc7 {[%clk 0:01:13]} 1-0


[Site "https://www.chess.com"]

[Event "Titled Tuesday Blitz March 07 Late 2023"]
[White "Pino Perez, Lazaro"]
[Black "Leonte, Sebastian-Marian"]
[WhiteFideId "3517055"]
[BlackFideId "1268767"]
[WhiteElo "2170"]
[BlackElo "2299"]
[Result "1-0"]
[Round "11"]
[TimeControl "180+2"]
[Date "2023.03.07"]
[WhiteClock "0:00:16"]
[BlackClock "0:00:03"]

1. d4 {[%clk 0:03:00]}  Nf6 {[%clk 0:02:59]} 2. Bf4 {[%clk 0:02:59]}  d5 {[%clk 0:02:56]} 3. e3 {[%clk 0:02:58]}  c5 {[%clk 0:02:56]} 4. Nf3 {[%clk 0:02:59]}  Nc6 {[%clk 0:02:55]} 5. Nbd2 {[%clk 0:02:59]}  cxd4 {[%clk 0:02:48]} 6. exd4 {[%clk 0:03:00]}  Bf5 {[%clk 0:02:46]} 7. c3 {[%clk 0:02:57]}  e6 {[%clk 0:02:45]} 8. Nh4 {[%clk 0:02:53]}  Be4 {[%clk 0:02:34]} 9. Qb3 {[%clk 0:02:46]}  Qd7 {[%clk 0:02:11]} 10. Ndf3 {[%clk 0:02:17]}  Bd6 {[%clk 0:01:55]} 11. Ne5 {[%clk 0:02:13]}  Bxe5 {[%clk 0:01:45]} 12. Bxe5 {[%clk 0:02:14]}  O-O {[%clk 0:01:34]} 13. Bxf6 {[%clk 0:01:50]}  gxf6 {[%clk 0:01:35]} 14. Bb5 {[%clk 0:01:12]}  Qc7 {[%clk 0:01:18]} 15. f3 {[%clk 0:00:58]}  Qf4 {[%clk 0:01:12]} 16. g3 {[%clk 0:00:51]}  Qe3+ {[%clk 0:01:11]} 17. Be2 {[%clk 0:00:52]}  Bg6 {[%clk 0:00:36]} 18. Qd1 {[%clk 0:00:51]}  e5 {[%clk 0:00:33]} 19. dxe5 {[%clk 0:00:42]}  Nxe5 {[%clk 0:00:24]} 20. Kf1 {[%clk 0:00:42]}  Nd3 {[%clk 0:00:13]} 21. Bxd3 {[%clk 0:00:35]}  Bxd3+ {[%clk 0:00:13]} 22. Kg2 {[%clk 0:00:35]}  Rfe8 {[%clk 0:00:08]} 23. Re1 {[%clk 0:00:35]}  Be2 {[%clk 0:00:08]} 24. Qc1 {[%clk 0:00:34]}  Qd3 {[%clk 0:00:06]} 25. Qh6 {[%clk 0:00:28]}  Re6 {[%clk 0:00:05]} 26. g4 {[%clk 0:00:24]}  Rae8 {[%clk 0:00:04]} 27. Qf4 {[%clk 0:00:23]}  Qc2 {[%clk 0:00:03]} 28. Kg3 {[%clk 0:00:22]}  Bd3 {[%clk 0:00:02]} 29. Rxe6 {[%clk 0:00:20]}  Rxe6 {[%clk 0:00:03]} 30. Rc1 {[%clk 0:00:19]}  Qxb2 {[%clk 0:00:03]} 31. Rd1 {[%clk 0:00:18]}  Bc4 {[%clk 0:00:02]} 32. Qb8+ {[%clk 0:00:17]}  Kg7 {[%clk 0:00:02]} 33. Nf5+ {[%clk 0:00:16]}  Kg6 {[%clk 0:00:03]} 34. Qg8# {[%clk 0:00:16]} 1-0


[Site "https://www.chess.com"]

[Event "Titled Tuesday Blitz March 07 Late 2023"]
[White "Kukavica, Tony"]
[Black "Gatterer, Florian"]
[WhiteFideId "2062542"]
[BlackFideId "811688"]
[WhiteElo "1993"]
[BlackElo "2221"]
[Result "1/2-1/2"]
[Round "11"]
[TimeControl "180+2"]
[Date "2023.03.07"]
[WhiteClock "0:03:01"]
[BlackClock "0:02:53"]

1. d4 {[%clk 0:03:00]}  d5 {[%clk 0:02:58]} 2. c4 {[%clk 0:03:01]}  c6 {[%clk 0:02:58]} 3. cxd5 {[%clk 0:02:59]}  cxd5 {[%clk 0:02:58]} 4. Nc3 {[%clk 0:02:59]}  Nf6 {[%clk 0:02:58]} 5. Nf3 {[%clk 0:03:00]}  Nc6 {[%clk 0:02:58]} 6. Ne5 {[%clk 0:03:01]}  e6 {[%clk 0:02:57]} 7. Nxc6 {[%clk 0:03:01]}  bxc6 {[%clk 0:02:57]} 8. g3 {[%clk 0:03:01]}  a5 {[%clk 0:02:55]} 9. Bg2 {[%clk 0:03:01]}  Be7 {[%clk 0:02:53]} 10. O-O {[%clk 0:03:01]}  O-O {[%clk 0:02:53]} 1/2-1/2


[Site "https://www.chess.com"]

[Event "Titled Tuesday Blitz March 07 Late 2023"]
[White "Rios Escobar, Adan"]
[Black "tandercat"]
[WhiteFideId "3403645"]
[WhiteElo "2378"]
[BlackElo "1956"]
[Result "1-0"]
[Round "11"]
[TimeControl "180+2"]
[Date "2023.03.07"]
[WhiteClock "0:00:16"]
[BlackClock "0:00:01"]

1. d4 {[%clk 0:02:56]}  d5 {[%clk 0:02:59]} 2. g3 {[%clk 0:02:55]}  Nf6 {[%clk 0:02:54]} 3. Nf3 {[%clk 0:02:55]}  Bf5 {[%clk 0:02:49]} 4. c4 {[%clk 0:02:55]}  e6 {[%clk 0:02:48]} 5. Nc3 {[%clk 0:02:56]}  h6 {[%clk 0:02:46]} 6. Qb3 {[%clk 0:02:54]}  b6 {[%clk 0:02:32]} 7. cxd5 {[%clk 0:02:48]}  exd5 {[%clk 0:02:31]} 8. Bg2 {[%clk 0:02:44]}  c6 {[%clk 0:02:28]} 9. O-O {[%clk 0:02:44]}  Bd6 {[%clk 0:02:26]} 10. Bf4 {[%clk 0:02:42]}  Bxf4 {[%clk 0:02:12]} 11. gxf4 {[%clk 0:02:43]}  O-O {[%clk 0:02:12]} 12. Ne5 {[%clk 0:02:41]}  Qd6 {[%clk 0:02:06]} 13. e3 {[%clk 0:02:40]}  Ne4 {[%clk 0:01:58]} 14. Rac1 {[%clk 0:02:38]}  Nd2 {[%clk 0:01:56]} 15. Qa4 {[%clk 0:02:34]}  b5 {[%clk 0:01:46]} 16. Nxb5 {[%clk 0:02:00]}  cxb5 {[%clk 0:01:43]} 17. Qxb5 {[%clk 0:02:00]}  Nxf1 {[%clk 0:01:41]} 18. Bxd5 {[%clk 0:02:00]}  Nd7 {[%clk 0:01:04]} 19. Bxa8 {[%clk 0:01:47]}  Nxe5 {[%clk 0:01:00]} 20. Bg2 {[%clk 0:00:58]}  Nd2 {[%clk 0:00:43]} 21. Qxe5 {[%clk 0:00:40]}  Qg6 {[%clk 0:00:25]} 22. Kh1 {[%clk 0:00:39]}  Ne4 {[%clk 0:00:23]} 23. Kg1 {[%clk 0:00:18]}  f6 {[%clk 0:00:16]} 24. Qd5+ {[%clk 0:00:17]}  Kh7 {[%clk 0:00:15]} 25. Rc5 {[%clk 0:00:17]}  Bh3 {[%clk 0:00:01]} 26. Qxe4 {[%clk 0:00:16]} 1-0


[Site "https://www.chess.com"]

[Event "Titled Tuesday Blitz March 07 Late 2023"]
[White "Garcia Almaguer, Juan Manuel"]
[Black "Howell, David W L"]
[WhiteFideId "5110491"]
[BlackFideId "410608"]
[WhiteElo "2117"]
[BlackElo "2567"]
[Result "0-1"]
[Round "11"]
[TimeControl "180+2"]
[Date "2023.03.07"]
[WhiteClock "0:00:56"]
[BlackClock "0:00:26"]

1. e4 {[%clk 0:02:58]}  c5 {[%clk 0:02:59]} 2. Nf3 {[%clk 0:02:57]}  Nc6 {[%clk 0:02:58]} 3. d4 {[%clk 0:02:57]}  cxd4 {[%clk 0:02:59]} 4. Nxd4 {[%clk 0:02:57]}  Nf6 {[%clk 0:02:59]} 5. Nc3 {[%clk 0:02:57]}  e6 {[%clk 0:02:57]} 6. Be2 {[%clk 0:02:56]}  Bb4 {[%clk 0:02:52]} 7. Nxc6 {[%clk 0:02:56]}  bxc6 {[%clk 0:02:52]} 8. e5 {[%clk 0:02:48]}  Nd5 {[%clk 0:02:52]} 9. Bd2 {[%clk 0:02:48]}  Qc7 {[%clk 0:02:52]} 10. Nxd5 {[%clk 0:02:46]}  Bxd2+ {[%clk 0:02:52]} 11. Qxd2 {[%clk 0:02:47]}  cxd5 {[%clk 0:02:51]} 12. Qg5 {[%clk 0:02:43]}  O-O {[%clk 0:02:49]} 13. Bd3 {[%clk 0:02:40]}  Rb8 {[%clk 0:02:43]} 14. O-O-O {[%clk 0:02:12]}  Rb6 {[%clk 0:02:08]} 15. h4 {[%clk 0:02:03]}  Ba6 {[%clk 0:02:08]} 16. Rh3 {[%clk 0:02:03]}  h6 {[%clk 0:01:52]} 17. Qf4 {[%clk 0:01:53]}  f6 {[%clk 0:01:43]} 18. Rg3 {[%clk 0:01:33]}  Qxe5 {[%clk 0:01:16]} 19. Qxh6 {[%clk 0:01:25]}  Qxb2+ {[%clk 0:00:49]} 20. Kd2 {[%clk 0:01:23]}  f5 {[%clk 0:00:50]} 21. Rb1 {[%clk 0:01:08]}  Qd4 {[%clk 0:00:42]} 22. Rxb6 {[%clk 0:01:07]}  Qxf2+ {[%clk 0:00:33]} 23. Kc1 {[%clk 0:00:56]}  Qxg3 {[%clk 0:00:26]} 0-1


[Site "https://www.chess.com"]

[Event "Titled Tuesday Blitz March 07 Late 2023"]
[White "Balague Camps, Marc"]
[Black "Kochetov, Andrey"]
[WhiteFideId "2297914"]
[BlackFideId "24130532"]
[WhiteElo "2089"]
[BlackElo "2497"]
[Result "0-1"]
[Round "11"]
[TimeControl "180+2"]
[Date "2023.03.07"]
[WhiteClock "0:02:08"]
[BlackClock "0:01:45"]

1. d4 {[%clk 0:02:56]}  Nf6 {[%clk 0:02:50]} 2. c4 {[%clk 0:02:57]}  Nc6 {[%clk 0:02:50]} 3. d5 {[%clk 0:02:56]}  Ne5 {[%clk 0:02:49]} 4. e4 {[%clk 0:02:56]}  e6 {[%clk 0:02:31]} 5. Qd4 {[%clk 0:02:54]}  d6 {[%clk 0:02:29]} 6. h3 {[%clk 0:02:47]}  g6 {[%clk 0:02:29]} 7. f4 {[%clk 0:02:45]}  Ned7 {[%clk 0:02:30]} 8. e5 {[%clk 0:02:43]}  dxe5 {[%clk 0:02:28]} 9. fxe5 {[%clk 0:02:44]}  Bc5 {[%clk 0:02:26]} 10. Qc3 {[%clk 0:02:43]}  Ne4 {[%clk 0:02:16]} 11. Qc2 {[%clk 0:02:28]}  Qh4+ {[%clk 0:02:13]} 12. Kd1 {[%clk 0:02:15]}  Nf2+ {[%clk 0:02:07]} 13. Ke2 {[%clk 0:02:14]}  Nxh1 {[%clk 0:02:06]} 14. Nd2 {[%clk 0:02:12]}  Bxg1 {[%clk 0:02:00]} 15. Ne4 {[%clk 0:02:08]}  Qxe4+ {[%clk 0:01:57]} 16. Qxe4 {[%clk 0:02:07]}  Ng3+ {[%clk 0:01:57]} 17. Kf3 {[%clk 0:02:08]}  Nxe4 {[%clk 0:01:58]} 18. Kxe4 {[%clk 0:02:09]}  Nc5+ {[%clk 0:01:55]} 19. Kf3 {[%clk 0:02:09]}  O-O {[%clk 0:01:50]} 20. b4 {[%clk 0:02:09]}  Bd4 {[%clk 0:01:46]} 21. Rb1 {[%clk 0:02:08]}  Nd7 {[%clk 0:01:45]} 0-1


[Site "https://www.chess.com"]

[Event "Titled Tuesday Blitz March 07 Late 2023"]
[White "Paspuel, Trosky"]
[Black "Pein, Jonathan"]
[WhiteFideId "3602150"]
[BlackFideId "417092"]
[WhiteElo "2329"]
[BlackElo "2151"]
[Result "1-0"]
[Round "11"]
[TimeControl "180+2"]
[Date "2023.03.07"]
[WhiteClock "0:00:02"]
[BlackClock "0:00:08"]

1. c4 {[%clk 0:03:00]}  f5 {[%clk 0:02:52]} 2. g3 {[%clk 0:02:59]}  Nf6 {[%clk 0:02:51]} 3. Bg2 {[%clk 0:02:59]}  g6 {[%clk 0:02:52]} 4. Nc3 {[%clk 0:02:59]}  Bg7 {[%clk 0:02:53]} 5. d4 {[%clk 0:02:57]}  O-O {[%clk 0:02:53]} 6. Nh3 {[%clk 0:02:58]}  e6 {[%clk 0:02:53]} 7. O-O {[%clk 0:02:50]}  a5 {[%clk 0:02:53]} 8. c5 {[%clk 0:02:30]}  Nc6 {[%clk 0:02:51]} 9. d5 {[%clk 0:02:20]}  exd5 {[%clk 0:02:49]} 10. Nxd5 {[%clk 0:02:21]}  Nxd5 {[%clk 0:02:42]} 11. Qxd5+ {[%clk 0:02:21]}  Kh8 {[%clk 0:02:42]} 12. Ng5 {[%clk 0:02:21]}  Qf6 {[%clk 0:02:35]} 13. Bf4 {[%clk 0:02:16]}  h6 {[%clk 0:02:28]} 14. Nf3 {[%clk 0:02:14]}  Qxb2 {[%clk 0:02:20]} 15. Rab1 {[%clk 0:01:47]}  Nb4 {[%clk 0:02:14]} 16. Qc4 {[%clk 0:01:34]}  Qxa2 {[%clk 0:02:10]} 17. Qc1 {[%clk 0:01:04]}  Qxe2 {[%clk 0:02:04]} 18. Bxh6 {[%clk 0:01:01]}  Qe7 {[%clk 0:01:45]} 19. Re1 {[%clk 0:00:54]}  Bxh6 {[%clk 0:01:22]} 20. Qxh6+ {[%clk 0:00:49]}  Qh7 {[%clk 0:01:22]} 21. Qf4 {[%clk 0:00:47]}  Qg7 {[%clk 0:01:17]} 22. Qxc7 {[%clk 0:00:44]}  Nc6 {[%clk 0:01:00]} 23. Ng5 {[%clk 0:00:43]}  a4 {[%clk 0:00:57]} 24. Bd5 {[%clk 0:00:33]}  a3 {[%clk 0:00:56]} 25. Qf4 {[%clk 0:00:33]}  Qd4 {[%clk 0:00:38]} 26. Re4 {[%clk 0:00:18]}  Qxd5 {[%clk 0:00:28]} 27. Qh4+ {[%clk 0:00:18]}  Kg7 {[%clk 0:00:28]} 28. Qh7+ {[%clk 0:00:16]}  Kf6 {[%clk 0:00:29]} 29. Rf4 {[%clk 0:00:09]}  a2 {[%clk 0:00:26]} 30. Re1 {[%clk 0:00:05]}  a1=Q {[%clk 0:00:26]} 31. Ne4+ {[%clk 0:00:02]}  Ke5 {[%clk 0:00:08]} 32. Qg7+ {[%clk 0:00:02]}  Rf6 {[%clk 0:00:08]} 33. Qxf6# {[%clk 0:00:02]} 1-0


[Site "https://www.chess.com"]

[Event "Titled Tuesday Blitz March 07 Late 2023"]
[White "Delgado Rosas, Fatima Alexandra"]
[Black "Beukes, Dante M"]
[WhiteFideId "6603963"]
[BlackFideId "15200540"]
[WhiteElo "2316"]
[BlackElo "2199"]
[Result "1-0"]
[Round "11"]
[TimeControl "180+2"]
[Date "2023.03.07"]
[WhiteClock "0:01:57"]
[BlackClock "0:00:07"]

1. d4 {[%clk 0:03:00]}  Nf6 {[%clk 0:02:59]} 2. c4 {[%clk 0:03:00]}  g6 {[%clk 0:02:59]} 3. Nc3 {[%clk 0:03:01]}  Bg7 {[%clk 0:03:00]} 4. e4 {[%clk 0:03:01]}  d6 {[%clk 0:03:01]} 5. Be2 {[%clk 0:03:02]}  O-O {[%clk 0:03:01]} 6. Nf3 {[%clk 0:03:02]}  e5 {[%clk 0:03:00]} 7. h3 {[%clk 0:03:02]}  exd4 {[%clk 0:02:49]} 8. Nxd4 {[%clk 0:03:03]}  Re8 {[%clk 0:02:49]} 9. Bf3 {[%clk 0:02:58]}  Nxe4 {[%clk 0:02:21]} 10. Bxe4 {[%clk 0:02:58]}  f5 {[%clk 0:00:40]} 11. O-O {[%clk 0:02:56]}  fxe4 {[%clk 0:00:41]} 12. Re1 {[%clk 0:02:56]}  Qh4 {[%clk 0:00:39]} 13. Nf3 {[%clk 0:02:49]}  Qh5 {[%clk 0:00:39]} 14. Rxe4 {[%clk 0:02:48]}  Rf8 {[%clk 0:00:38]} 15. Qd5+ {[%clk 0:02:40]}  Qxd5 {[%clk 0:00:37]} 16. Nxd5 {[%clk 0:02:41]}  Na6 {[%clk 0:00:34]} 17. Bg5 {[%clk 0:02:40]}  Bf5 {[%clk 0:00:30]} 18. Re2 {[%clk 0:02:36]}  Bd3 {[%clk 0:00:26]} 19. Re7 {[%clk 0:02:22]}  h6 {[%clk 0:00:24]} 20. Be3 {[%clk 0:02:19]}  Rf7 {[%clk 0:00:23]} 21. b3 {[%clk 0:02:17]}  Bxa1 {[%clk 0:00:22]} 22. Re6 {[%clk 0:02:13]}  c6 {[%clk 0:00:18]} 23. Nf4 {[%clk 0:02:10]}  Bf5 {[%clk 0:00:17]} 24. Rxd6 {[%clk 0:02:09]}  g5 {[%clk 0:00:14]} 25. Nh5 {[%clk 0:02:08]}  Kh7 {[%clk 0:00:09]} 26. h4 {[%clk 0:02:07]}  Bg6 {[%clk 0:00:09]} 27. hxg5 {[%clk 0:02:06]}  Rxf3 {[%clk 0:00:04]} 28. gxf3 {[%clk 0:02:04]}  Be5 {[%clk 0:00:05]} 29. Rd7+ {[%clk 0:02:03]}  Kg8 {[%clk 0:00:04]} 30. Nf6+ {[%clk 0:02:03]}  Bxf6 {[%clk 0:00:05]} 31. gxf6 {[%clk 0:02:04]}  Rf8 {[%clk 0:00:05]} 32. Rg7+ {[%clk 0:02:03]}  Kh8 {[%clk 0:00:05]} 33. Rxg6 {[%clk 0:02:04]}  Nc7 {[%clk 0:00:03]} 34. Bxh6 {[%clk 0:02:04]}  Rf7 {[%clk 0:00:03]} 35. Bg7+ {[%clk 0:02:05]}  Kg8 {[%clk 0:00:02]} 36. Rh6 {[%clk 0:02:05]}  Rd7 {[%clk 0:00:01]} 37. Rh8+ {[%clk 0:02:05]}  Kf7 {[%clk 0:00:02]} 38. Rf8+ {[%clk 0:02:06]}  Kg6 {[%clk 0:00:02]} 39. Rb8 {[%clk 0:02:06]}  Ne6 {[%clk 0:00:02]} 40. Ra8 {[%clk 0:02:03]}  Nxg7 {[%clk 0:00:03]} 41. fxg7 {[%clk 0:02:04]}  Kxg7 {[%clk 0:00:03]} 42. Rxa7 {[%clk 0:02:05]}  Kf6 {[%clk 0:00:04]} 43. a4 {[%clk 0:02:04]}  Ke5 {[%clk 0:00:05]} 44. a5 {[%clk 0:02:05]}  Rg7+ {[%clk 0:00:05]} 45. Kf1 {[%clk 0:02:04]}  Rh7 {[%clk 0:00:04]} 46. Kg2 {[%clk 0:02:03]}  Rg7+ {[%clk 0:00:04]} 47. Kf1 {[%clk 0:02:04]}  Rd7 {[%clk 0:00:05]} 48. Ke2 {[%clk 0:02:04]}  Kd4 {[%clk 0:00:03]} 49. a6 {[%clk 0:02:04]}  Re7+ {[%clk 0:00:03]} 50. Kd2 {[%clk 0:02:04]}  Kc5 {[%clk 0:00:04]} 51. Rxb7 {[%clk 0:02:04]}  Re8 {[%clk 0:00:04]} 52. a7 {[%clk 0:02:04]}  Ra8 {[%clk 0:00:04]} 53. f4 {[%clk 0:02:04]}  Rf8 {[%clk 0:00:04]} 54. f5 {[%clk 0:02:04]}  Rxf5 {[%clk 0:00:04]} 55. a8=Q {[%clk 0:02:04]}  Rxf2+ {[%clk 0:00:05]} 56. Ke3 {[%clk 0:02:04]}  Rf8 {[%clk 0:00:05]} 57. Qa5+ {[%clk 0:02:03]}  Kd6 {[%clk 0:00:04]} 58. c5+ {[%clk 0:02:03]}  Kd5 {[%clk 0:00:04]} 59. Rd7+ {[%clk 0:02:04]}  Ke6 {[%clk 0:00:05]} 60. Qc7 {[%clk 0:02:02]}  Re8 {[%clk 0:00:05]} 61. Qd6+ {[%clk 0:02:02]}  Kf5+ {[%clk 0:00:06]} 62. Kd4 {[%clk 0:01:59]}  Re6 {[%clk 0:00:07]} 63. Rf7+ {[%clk 0:01:59]}  Kg5 {[%clk 0:00:07]} 64. Qxe6 {[%clk 0:01:57]} 1-0


[Site "https://www.chess.com"]

[Event "Titled Tuesday Blitz March 07 Late 2023"]
[White "Prieto Aranguren, Alain"]
[Black "Figorito, Nick"]
[WhiteFideId "2268906"]
[BlackFideId "30923689"]
[WhiteElo "2209"]
[BlackElo "2387"]
[Result "0-1"]
[Round "11"]
[TimeControl "180+2"]
[Date "2023.03.07"]
[WhiteClock "0:00:01"]
[BlackClock "0:00:08"]

1. e4 {[%clk 0:03:00]}  e6 {[%clk 0:03:00]} 2. d4 {[%clk 0:02:59]}  d5 {[%clk 0:03:01]} 3. exd5 {[%clk 0:02:59]}  exd5 {[%clk 0:03:02]} 4. Bd3 {[%clk 0:02:59]}  Bd6 {[%clk 0:03:02]} 5. Nf3 {[%clk 0:02:59]}  Ne7 {[%clk 0:03:03]} 6. O-O {[%clk 0:03:00]}  O-O {[%clk 0:03:03]} 7. c3 {[%clk 0:03:00]}  Bf5 {[%clk 0:03:03]} 8. Re1 {[%clk 0:02:59]}  c6 {[%clk 0:03:00]} 9. b3 {[%clk 0:02:29]}  Bxd3 {[%clk 0:02:56]} 10. Qxd3 {[%clk 0:02:27]}  Ng6 {[%clk 0:02:55]} 11. c4 {[%clk 0:02:23]}  dxc4 {[%clk 0:02:53]} 12. bxc4 {[%clk 0:02:20]}  Nd7 {[%clk 0:02:54]} 13. Nc3 {[%clk 0:02:15]}  Nf6 {[%clk 0:02:51]} 14. Bg5 {[%clk 0:02:12]}  h6 {[%clk 0:02:49]} 15. Bxf6 {[%clk 0:02:08]}  Qxf6 {[%clk 0:02:50]} 16. Ne4 {[%clk 0:02:04]}  Qd8 {[%clk 0:02:50]} 17. Nxd6 {[%clk 0:01:54]}  Qxd6 {[%clk 0:02:51]} 18. Rad1 {[%clk 0:01:51]}  Rad8 {[%clk 0:02:46]} 19. g3 {[%clk 0:01:46]}  Qf6 {[%clk 0:02:43]} 20. Kg2 {[%clk 0:01:39]}  Rd7 {[%clk 0:02:41]} 21. Qa3 {[%clk 0:01:34]}  a6 {[%clk 0:02:37]} 22. Re3 {[%clk 0:01:28]}  Rfd8 {[%clk 0:02:36]} 23. Rde1 {[%clk 0:01:24]}  Kh7 {[%clk 0:02:09]} 24. Qd3 {[%clk 0:01:17]}  b5 {[%clk 0:01:56]} 25. h4 {[%clk 0:01:13]}  bxc4 {[%clk 0:01:48]} 26. Qc2 {[%clk 0:01:12]}  Kg8 {[%clk 0:01:40]} 27. Re8+ {[%clk 0:01:07]}  Nf8 {[%clk 0:01:39]} 28. Qxc4 {[%clk 0:01:03]}  a5 {[%clk 0:01:38]} 29. Qc5 {[%clk 0:00:59]}  Qd6 {[%clk 0:01:32]} 30. Qxa5 {[%clk 0:00:58]}  Kh7 {[%clk 0:01:23]} 31. Rxd8 {[%clk 0:00:48]}  Rxd8 {[%clk 0:01:21]} 32. Qa7 {[%clk 0:00:46]}  Rd7 {[%clk 0:01:10]} 33. Qb6 {[%clk 0:00:46]}  Ne6 {[%clk 0:01:10]} 34. a4 {[%clk 0:00:41]}  Nxd4 {[%clk 0:01:04]} 35. Nxd4 {[%clk 0:00:37]}  Qxd4 {[%clk 0:01:04]} 36. Qxc6 {[%clk 0:00:34]}  Rd6 {[%clk 0:00:52]} 37. Qc2+ {[%clk 0:00:33]}  g6 {[%clk 0:00:50]} 38. Qa2 {[%clk 0:00:32]}  Rf6 {[%clk 0:00:45]} 39. a5 {[%clk 0:00:29]}  h5 {[%clk 0:00:41]} 40. Re7 {[%clk 0:00:25]}  Kg7 {[%clk 0:00:38]} 41. a6 {[%clk 0:00:25]}  Qd8 {[%clk 0:00:22]} 42. Rb7 {[%clk 0:00:17]}  Qa8 {[%clk 0:00:20]} 43. Qd5 {[%clk 0:00:06]}  Qxa6 {[%clk 0:00:17]} 44. Rd7 {[%clk 0:00:04]}  Qe2 {[%clk 0:00:14]} 45. Qd4 {[%clk 0:00:04]}  Qe6 {[%clk 0:00:13]} 46. Ra7 {[%clk 0:00:03]}  Qf5 {[%clk 0:00:13]} 47. Ra4 {[%clk 0:00:02]}  Qf3+ {[%clk 0:00:13]} 48. Kg1 {[%clk 0:00:02]}  Kh7 {[%clk 0:00:12]} 49. Ra1 {[%clk 0:00:01]}  Re6 {[%clk 0:00:08]} 0-1


[Site "https://www.chess.com"]